fUSD/lending_fUSD_20251017
["ID","MTS","AMOUNT","RATE_DAILY","PERIOD"]
[391705878,1760736656928,-200.0,0.00041519,2]
[391705879,1760736656938,-200.0,0.00041519,2]
[391705880,1760736656947,-300.0,0.00041534,30]
[391705881,1760736656957,-12318.36988823,0.00041545,2]
[391705882,1760736656966,-500.0,0.00041592,120]
[391705883,1760736656974,-12774.14957409,0.000416,2]
[391705884,1760736656981,-191.85004,0.00041645,30]
[391705885,1760736656988,-13246.79310833,0.00041655,2]
[391705886,1760736656997,-151.0,0.00041708,2]
[391705887,1760736657006,-151.0,0.00041708,2]
[391705888,1760736657016,-151.0,0.00041708,2]
[391705889,1760736657026,-13736.92445334,0.0004171,2]
[391705890,1760736657036,-150.0,0.00041844,30]
[391705891,1760736657045,-161.88797475,0.00041844,30]
[391705892,1760736657054,-150.0,0.00041844,30]
[391705893,1760736657066,-150.0,0.00041844,30]
[391705894,1760736657076,-150.0,0.00041844,30]
[391705895,1760736657086,-150.0,0.00041844,30]
[391705896,1760736657095,-150.0,0.00041844,30]
[391705897,1760736657105,-150.0,0.00041844,30]
[391705898,1760736657115,-150.0,0.00041844,30]
[391705899,1760736657125,-150.0,0.00041844,30]
[391705900,1760736657135,-150.0,0.00041844,30]
[391705901,1760736657144,-304.54512332,0.00041844,30]
[391705902,1760736657154,-150.0,0.00041844,30]
[391705903,1760736657163,-150.0,0.00041844,30]
[391705904,1760736657173,-161.90960499,0.00041844,30]
[391705905,1760736657182,-150.0,0.00041844,30]
[391705906,1760736657192,-150.0,0.00041844,30]
[391705907,1760736657201,-150.0,0.00041844,30]
[391705908,1760736657211,-150.0,0.00041844,30]
[391705909,1760736657220,-191.85004,0.00041845,30]
[391705910,1760736657230,-500.0,0.00041866,120]
[391705911,1760736657239,-161.88797475,0.00041891,30]
[391705912,1760736657249,-304.54512332,0.00041891,30]
[391705913,1760736657259,-156.05,0.00041895,14]
[391705914,1760736657268,-150.0,0.00041899,30]
[391705915,1760736657278,-200.0,0.000419,22]
[391705916,1760736657288,-387.85351644,0.00041906,30]
[391705917,1760736657297,-572.819,0.00041917,2]
[391705918,1760736657306,-1589.0,0.00041917,2]
[391705919,1760736657316,-605.0,0.00041917,2]
[391705920,1760736657325,-1310.0,0.00041917,2]
[391705921,1760736657335,-826.0,0.00041917,2]
[391705922,1760736657343,-2546.0,0.00041917,2]
[391705923,1760736657353,-1183.0,0.00041917,2]
[391705924,1760736657363,-902.0,0.00041917,2]
[391705925,1760736657373,-6436.0,0.00041917,2]
[391705926,1760736657382,-2589.0,0.00041917,2]
[391705927,1760736657392,-687.548,0.00041917,2]
[391705928,1760736657402,-3408.0,0.00041917,2]
[391705929,1760736657412,-150.0,0.00041918,30]
[391705930,1760736657421,-150.0,0.00041932,30]
[391705931,1760736657431,-150.0,0.00041937,30]
[391705932,1760736657440,-161.88797475,0.00041938,30]
[391705933,1760736657454,-304.54512332,0.00041938,30]
[391705934,1760736657463,-156.05,0.00041945,14]
[391705935,1760736657474,-150.0,0.00041955,30]
[391705936,1760736657484,-150.0,0.0004196,30]
[391705937,1760736657494,-161.88797475,0.00041985,30]
[391705938,1760736657503,-304.54512332,0.00041985,30]
[391705939,1760736657513,-150.0,0.00041991,30]
[391705940,1760736657523,-156.05,0.00041995,14]
[391705941,1760736657533,-151.0,0.00041997,14]
[391705942,1760736657543,-349.0,0.00042,120]
[391705943,1760736657553,-182.0,0.00042,120]
[391705944,1760736657563,-150.0,0.00042,53]
[391705945,1760736657573,-121392.52712399,0.00042,30]
[391705946,1760736657582,-112900.55547941,0.00042,30]
[391705947,1760736657592,-922.52,0.00042,30]
[391705948,1760736657602,-238800.70344655,0.00042,30]
[391705949,1760736657612,-514.27585391,0.00042,120]
[391705950,1760736657622,-1610.9440478,0.00042,120]
[391705951,1760736657631,-658.0770571,0.00042,120]
[391705952,1760736657642,-156.415448,0.00042,120]
[391705953,1760736657651,-151.0,0.00042,120]
[391705954,1760736657660,-151.0,0.00042,120]
[391705955,1760736657670,-151.0,0.00042,120]
[391705956,1760736657682,-151.0,0.00042,120]
[391705957,1760736657694,-151.0,0.00042,120]
[391705958,1760736657704,-151.0,0.00042,120]
[391705959,1760736657714,-151.0,0.00042,120]
[391705960,1760736657724,-201.739994,0.00042,120]
[391705961,1760736657733,-201.739994,0.00042,120]
[391705962,1760736657744,-887.215651,0.00042,120]
[391705963,1760736657757,-201.739994,0.00042,120]
[391705964,1760736657767,-887.215651,0.00042,120]
[391705965,1760736657777,-201.739994,0.00042,120]
[391705966,1760736657787,-887.215651,0.00042,120]
[391705967,1760736657797,-164.573965,0.00042,120]
[391705968,1760736657807,-887.215651,0.00042,120]
[391705969,1760736657817,-151.0,0.00042,120]
[391705970,1760736657826,-151.0,0.00042,120]
[391705971,1760736657839,-151.0,0.00042,120]
[391705972,1760736657849,-377.028455,0.00042,120]
[391705973,1760736657858,-151.0,0.00042,120]
[391705974,1760736657868,-280.345504,0.00042,120]
[391705975,1760736657878,-280.345504,0.00042,120]
[391705976,1760736657889,-377.028455,0.00042,120]
[391705977,1760736657899,-280.345504,0.00042,120]
[391705978,1760736657908,-377.028455,0.00042,120]
[391705979,1760736657918,-280.345504,0.00042,120]
[391705980,1760736657927,-377.028455,0.00042,120]
[391705981,1760736657937,-151.0,0.00042,120]
[391705982,1760736657947,-290.720875,0.00042,120]
[391705983,1760736657957,-151.0,0.00042,120]
[391705984,1760736657967,-177.804928,0.00042,120]
[391705985,1760736657977,-177.804928,0.00042,120]
[391705986,1760736657987,-177.804928,0.00042,120]
[391705987,1760736657996,-177.804928,0.00042,120]
[391705988,1760736658006,-193.9679,0.00042,120]
[391705989,1760736658015,-193.9679,0.00042,120]
[391705990,1760736658025,-193.9679,0.00042,120]
[391705991,1760736658034,-193.9679,0.00042,120]
[391705992,1760736658044,-150.0,0.00042004,30]
[391705993,1760736658053,-150.0,0.0004201,30]
[391705994,1760736658062,-150.0,0.00042019,30]
[391705995,1760736658072,-150.0,0.0004203,30]
[391705996,1760736658081,-161.88797475,0.00042032,30]
[391705997,1760736658090,-304.54512332,0.00042032,30]
[391705998,1760736658100,-191.85004,0.00042045,30]
[391705999,1760736658109,-150.0,0.00042046,30]
[391706000,1760736658118,-150.0,0.00042065,30]
[391706001,1760736658128,-150.0,0.00042065,30]
[391706002,1760736658137,-150.0,0.00042076,30]
[391706003,1760736658147,-161.88797475,0.00042079,30]
[391706004,1760736658156,-304.54512332,0.00042079,30]
[391706005,1760736658167,-151.0,0.000421,120]
[391706006,1760736658176,-582.0,0.000421,3]
[391706007,1760736658185,-150.0,0.00042107,30]
[391706008,1760736658195,-150.0,0.00042121,30]
[391706009,1760736658204,-150.0,0.00042123,30]
[391706010,1760736658214,-161.88797475,0.00042126,30]
[391706011,1760736658227,-304.54512332,0.00042126,30]
[391706012,1760736658236,-150.0,0.00042134,30]
[391706013,1760736658246,-150.0,0.00042134,30]
[391706014,1760736658255,-150.0,0.00042139,30]
[391706015,1760736658264,-500.0,0.0004214,120]
[391706016,1760736658274,-150.0,0.00042164,30]
[391706017,1760736658283,-161.88797475,0.00042173,30]
[391706018,1760736658292,-304.54512332,0.00042173,30]
[391706019,1760736658302,-150.0,0.00042176,30]
[391706020,1760736658311,-150.0,0.00042193,30]
[391706021,1760736658320,-150.0,0.00042195,30]
[391706022,1760736658331,-5578.70524621,0.000422,2]
[391706023,1760736658340,-150.0,0.00042213,30]
[391706024,1760736658350,-150.0,0.00042216,30]
[391706025,1760736658359,-161.88797475,0.0004222,30]
[391706026,1760736658368,-304.54512332,0.0004222,30]
[391706027,1760736658378,-150.0,0.00042231,30]
[391706028,1760736658387,-191.85004,0.00042245,30]
[391706029,1760736658396,-2476.24061106,0.00042248,39]
[391706030,1760736658405,-150.0,0.00042248,30]
[391706031,1760736658415,-151.0,0.00042256,2]
[391706032,1760736658424,-151.0,0.00042256,2]
[391706033,1760736658434,-161.88797475,0.00042267,30]
[391706034,1760736658443,-304.54512332,0.00042267,30]
[391706035,1760736658452,-150.0,0.00042282,30]
[391706036,1760736658462,-150.0,0.00042287,30]
[391706037,1760736658471,-150.0,0.00042287,30]
[391706038,1760736658480,-856.7,0.00042305,120]
[391706039,1760736658490,-150.0,0.00042309,30]
[391706040,1760736658499,-150.0,0.00042309,30]
[391706041,1760736658508,-161.88797475,0.00042313,30]
[391706042,1760736658518,-304.54512332,0.00042313,30]
[391706043,1760736658527,-150.0,0.00042325,30]
[391706044,1760736658537,-150.0,0.00042342,30]
[391706045,1760736658546,-150.0,0.0004236,30]
[391706046,1760736658555,-161.88797475,0.0004236,30]
[391706047,1760736658565,-150.0,0.0004236,30]
[391706048,1760736658575,-304.54512332,0.0004236,30]
[391706049,1760736658584,-150.0,0.0004237,30]
[391706050,1760736658750,-316.0,0.00042389,17]
[391706051,1760736658762,-500.0,0.00042389,2]
[391706052,1760736658773,-150.0,0.00042397,30]
[391706053,1760736658783,-64882.26998745,0.000424,120]
[391706054,1760736658792,-670.971821,0.000424,120]
[391706055,1760736658802,-670.971821,0.000424,120]
[391706056,1760736658811,-151.0,0.000424,120]
[391706057,1760736658820,-670.971821,0.000424,120]
[391706058,1760736658830,-670.971828,0.000424,120]
[391706059,1760736658840,-154.421392,0.000424,120]
[391706060,1760736658850,-680.599913,0.000424,120]
[391706061,1760736658859,-154.421392,0.000424,120]
[391706062,1760736658868,-240.774713,0.000424,120]
[391706063,1760736658877,-680.599913,0.000424,120]
[391706064,1760736658887,-154.421392,0.000424,120]
[391706065,1760736658896,-151.0,0.000424,120]
[391706066,1760736658905,-240.774713,0.000424,120]
[391706067,1760736658915,-680.599913,0.000424,120]
[391706068,1760736658924,-154.421394,0.000424,120]
[391706069,1760736658934,-240.774713,0.000424,120]
[391706070,1760736658943,-283.832494,0.000424,120]
[391706071,1760736658953,-680.599908,0.000424,120]
[391706072,1760736658962,-151.0,0.000424,120]
[391706073,1760736658972,-283.832494,0.000424,120]
[391706074,1760736658981,-240.774719,0.000424,120]
[391706075,1760736658991,-283.832494,0.000424,120]
[391706076,1760736659000,-151.0,0.000424,120]
[391706077,1760736659010,-151.0,0.000424,120]
[391706078,1760736659019,-283.832493,0.000424,120]
[391706079,1760736659029,-151.0,0.000424,120]
[391706080,1760736659038,-151.0,0.000424,120]
[391706081,1760736659047,-151.0,0.000424,30]
[391706082,1760736659058,-151.0,0.000424,30]
[391706083,1760736659068,-150.0,0.00042402,30]
[391706084,1760736659078,-161.88797475,0.00042407,30]
[391706085,1760736659087,-304.54512332,0.00042407,30]
[391706086,1760736659096,-500.0,0.00042414,120]
[391706087,1760736659105,-150.0,0.00042425,30]
[391706088,1760736659114,-150.0,0.00042425,30]
[391706089,1760736659123,-150.0,0.00042425,30]
[391706090,1760736659132,-150.0,0.00042434,30]
[391706091,1760736659142,-47.07011198,0.0004245,30]
[391706092,1760736659384,-151.0,0.000248,7]
[391706093,1760736659394,-151.0,0.00034849,30]
[391706094,1760736659403,-151.0,0.00039909,30]
[391706095,1760736659413,-151.0,0.00041096,30]
[391706096,1760736659422,-151.0,0.000424,30]
[391706097,1760736659432,-102.92988802,0.0004245,30]
[391706098,1760736659441,-150.0,0.00042453,30]
[391706099,1760736659451,-161.88797475,0.00042454,30]
[391706100,1760736659460,-304.54512332,0.00042454,30]
[391706101,1760736659469,-150.0,0.00042458,30]
[391706102,1760736659479,-150.0,0.00042485,30]
[391706103,1760736659487,-150.0,0.00042495,30]
[391706104,1760736659497,-231.89151821,0.000425,120]
[391706105,1760736659508,-1730.699999,0.000425,120]
[391706106,1760736659519,-5628.63126363,0.000425,120]
[391706107,1760736659530,-4540.0,0.000425,120]
[391706108,1760736659542,-9294.77962876,0.000425,120]
[391706109,1760736659551,-889.54244406,0.000425,120]
[391706110,1760736659560,-1673.23259525,0.000425,60]
[391706111,1760736659570,-1298.39404637,0.000425,120]
[391706112,1760736659584,-154.0,0.000425,120]
[391706113,1760736659595,-1000.0,0.000425,8]
[391706114,1760736659604,-161.88797475,0.00042501,30]
[391706115,1760736659614,-304.54512332,0.00042501,30]
[391706116,1760736659623,-150.0,0.00042508,30]
[391706117,1760736659632,-150.0,0.00042508,30]
[391706118,1760736659641,-334.5472959,0.00042529,2]
[391706119,1760736659651,-287.61899177,0.00042529,2]
[391706120,1760736659660,-150.0,0.00042541,30]
[391706121,1760736659670,-150.0,0.00042546,30]
[391706122,1760736659679,-161.88797475,0.00042548,30]
[391706123,1760736659692,-304.54512332,0.00042548,30]
[391706124,1760736659702,-150.0,0.00042563,30]
[391706125,1760736659711,-150.0,0.00042582,30]
[391706126,1760736659720,-150.0,0.00042588,30]
[391706127,1760736659730,-161.88797475,0.00042595,30]
[391706128,1760736659740,-304.54512332,0.00042595,30]
[391706129,1760736659749,-150.0,0.00042619,30]
[391706130,1760736659759,-150.0,0.00042633,30]
[391706131,1760736659770,-161.88797475,0.00042642,30]
[391706132,1760736659779,-304.54512332,0.00042642,30]
[391706133,1760736659789,-191.85004,0.00042645,30]
[391706134,1760736659800,-150.0,0.00042645,30]
[391706135,1760736659810,-150.0,0.00042652,30]
[391706136,1760736659819,-150.0,0.00042656,30]
[391706137,1760736659829,-150.0,0.00042657,30]
[391706138,1760736659843,-150.0,0.00042674,30]
[391706139,1760736659852,-150.0,0.00042681,30]
[391706140,1760736659863,-161.76830817,0.00042686,2]
[391706141,1760736659872,-161.88797475,0.00042689,30]
[391706142,1760736659882,-304.54512332,0.00042689,30]
[391706143,1760736659891,-150.0,0.00042716,30]
[391706144,1760736659900,-150.0,0.00042716,30]
[391706145,1760736659910,-150.0,0.00042721,30]
[391706146,1760736659920,-150.0,0.00042729,30]
[391706147,1760736659929,-150.0,0.00042729,30]
[391706148,1760736659938,-161.88797475,0.00042736,30]
[391706149,1760736659947,-304.54512332,0.00042736,30]
[391706150,1760736659958,-2786.97932029,0.00042745,120]
[391706151,1760736659967,-150.0,0.00042774,30]
[391706152,1760736659976,-150.0,0.00042774,30]
[391706153,1760736659986,-150.0,0.00042774,30]
[391706154,1760736659995,-150.0,0.00042774,30]
[391706155,1760736660005,-161.88797475,0.00042783,30]
[391706156,1760736660015,-304.54512332,0.00042783,30]
[391706157,1760736660024,-150.0,0.00042785,30]
[391706158,1760736660033,-150.0,0.00042803,30]
[391706159,1760736660043,-151.0,0.00042804,2]
[391706160,1760736660052,-151.0,0.00042804,2]
[391706161,1760736660062,-150.0,0.00042806,30]
[391706162,1760736660071,-150.0,0.00042809,30]
[391706163,1760736660080,-982.96934227,0.0004282,2]
[391706164,1760736660091,-500.0,0.00042829,2]
[391706165,1760736660100,-161.88797475,0.0004283,30]
[391706166,1760736660109,-304.54512332,0.0004283,30]
[391706167,1760736660118,-150.0,0.0004284,30]
[391706168,1760736660127,-191.85004,0.00042845,30]
[391706169,1760736660136,-150.0,0.00042855,30]
[391706170,1760736660145,-150.0,0.00042867,30]
[391706171,1760736660154,-150.0,0.00042877,30]
[391706172,1760736660163,-161.88797475,0.00042877,30]
[391706173,1760736660172,-150.0,0.00042877,30]
[391706174,1760736660181,-304.54512332,0.00042877,30]
[391706175,1760736660191,-150.0,0.0004289,30]
[391706176,1760736660200,-150.0,0.00042895,30]
[391706177,1760736660209,-150.0,0.00042897,30]
[391706178,1760736660220,-151.0,0.000429,120]
[391706179,1760736660228,-1394.03170669,0.000429,120]
[391706180,1760736660237,-217.56063084,0.000429,15]
[391706181,1760736660248,-161.88797475,0.00042924,30]
[391706182,1760736660257,-304.54512332,0.00042924,30]
[391706183,1760736660267,-153.2364782,0.00042936,9]
[391706184,1760736660276,-1328.9,0.0004295,120]
[391706185,1760736660286,-150.0,0.00042951,30]
[391706186,1760736660295,-150.0,0.00042951,30]
[391706187,1760736660304,-151.20527436,0.00042959,30]
[391706188,1760736660313,-150.0,0.0004296,30]
[391706189,1760736660323,-150.0,0.00042966,30]
[391706190,1760736660332,-161.88797475,0.00042971,30]
[391706191,1760736660342,-304.54512332,0.00042971,30]
[391706192,1760736660351,-150.0,0.00042984,30]
[391706193,1760736660360,-1000.0,0.00043,45]
[391706194,1760736660369,-578.0,0.00043,10]
[391706195,1760736660379,-20428.97311713,0.00043,120]
[391706196,1760736660391,-8718.12997623,0.00043,120]
[391706197,1760736660401,-155.38631582,0.00043,120]
[391706198,1760736660409,-318.3682381,0.00043,120]
[391706199,1760736660419,-150.0,0.00043006,30]
[391706200,1760736660428,-150.0,0.00043006,30]
[391706201,1760736660438,-150.0,0.00043006,30]
[391706202,1760736660447,-150.0,0.00043006,30]
[391706203,1760736660456,-150.0,0.00043006,30]
[391706204,1760736660466,-203.02,0.00043014,120]
[391706205,1760736660475,-161.88797475,0.00043018,30]
[391706206,1760736660484,-304.54512332,0.00043018,30]
[391706207,1760736660493,-150.0,0.00043025,30]
[391706208,1760736660503,-500.0,0.00043025,2]
[391706209,1760736660512,-28468.7013845,0.00043036,30]
[391706210,1760736660524,-605.15,0.00043036,30]
[391706211,1760736660927,-498.01468149,0.00014999,2]
[391706212,1760736660937,-222.497682,0.00014999,2]
[391706213,1760736660946,-217.88936878,0.00014999,2]
[391706214,1760736660958,-122.20036227,0.00014999,2]
[391706215,1760736660967,-500.0,0.00014999,2]
[391706216,1760736660977,-500.0,0.00014999,2]
[391706217,1760736660987,-250.04182718,0.00014999,2]
[391706218,1760736660996,-151.0,0.000248,7]
[391706219,1760736661005,-163.0,0.00034038,2]
[391706220,1760736661015,-163.0,0.00034038,2]
[391706221,1760736661027,-163.0,0.00034038,2]
[391706222,1760736661036,-163.0,0.00034038,2]
[391706223,1760736661045,-163.0,0.00034038,2]
[391706224,1760736661054,-163.0,0.00034038,2]
[391706225,1760736661063,-163.0,0.00034038,2]
[391706226,1760736661073,-163.0,0.00034038,2]
[391706227,1760736661082,-151.0,0.00034849,30]
[391706228,1760736661091,-151.0,0.00034849,30]
[391706229,1760736661100,-151.0,0.00039909,120]
[391706230,1760736661109,-166.355172,0.00039909,30]
[391706231,1760736661119,-387.37737828,0.00039999,15]
[391706232,1760736661131,-397.91598976,0.00039999,31]
[391706233,1760736661140,-445.64713326,0.00039999,7]
[391706234,1760736661150,-433.98159127,0.00039999,31]
[391706235,1760736661159,-500.0,0.00039999,31]
[391706236,1760736661168,-500.0,0.00039999,31]
[391706237,1760736661177,-380.36614598,0.00039999,31]
[391706238,1760736661193,-163.0,0.00034038,2]
[391706239,1760736661202,-138.79511203,0.00039999,31]
[391706240,1760736661212,-152.75134123,0.00039999,31]
[391706241,1760736662385,200.0,0.0003214,120]
[391706260,1760736765309,172.5,0.00032145,30]
[391706278,1760736965392,200.0,0.00032145,120]
[391706285,1760737091870,1500.0,0.00025904,120]
[391706295,1760737261688,200.0,0.00032048,120]
[391706297,1760737335390,1261.12,0.00024726,120]
[391706304,1760737562365,200.0,0.00032043,120]
[391706321,1760737831871,-625.0,0.00016419,2]
[391706322,1760737831880,-5849.9616096,0.00016519,2]
[391706323,1760737831890,-305.1292457,0.0001716,2]
[391706324,1760737831934,-894.8707543,0.0001716,2]
[391706325,1760737831943,-300.0,0.0001716,2]
[391706326,1760737831953,-257.0,0.0001716,2]
[391706327,1760737831963,-10455.010647,0.00017161,2]
[391706328,1760737831972,-157.97296069,0.00017235,2]
[391706329,1760737831981,-1502.0847465,0.0001792,2]
[391706330,1760737831990,-300.0,0.00017999,2]
[391706331,1760737831999,-387.85351644,0.00017999,2]
[391706332,1760737832008,-300.0,0.00017999,2]
[391706333,1760737832018,-302.85637029,0.00017999,2]
[391706334,1760737832027,-300.0,0.00017999,2]
[391706335,1760737832037,-300.0,0.00017999,2]
[391706336,1760737832047,-300.0,0.00017999,2]
[391706337,1760737832056,-300.0,0.00017999,2]
[391706338,1760737832066,-250.0,0.00018061,2]
[391706339,1760737832075,-596.97912882,0.00018061,2]
[391706340,1760737832085,-2500.0,0.00018061,2]
[391706341,1760737832094,-119.43052689,0.00018698,2]
[391706342,1760737832105,-972.67038173,0.00018698,2]
[391706343,1760737832116,-213.20196218,0.00018698,2]
[391706344,1760737832126,-1680.0,0.00018832,2]
[391706345,1760737832135,-291.2524386,0.00019185,2]
[391706346,1760737832144,-195.11637549,0.0001936,2]
[391706347,1760737832153,-325.31238304,0.00019748,2]
[391706348,1760737832165,-471.41117951,0.00019748,2]
[391706349,1760737832174,-625.0,0.000199,2]
[391706350,1760737832183,-26.10815065,0.00019999,2]
[391706351,1760737832199,-273.89184935,0.00019999,2]
[391706352,1760737832208,-300.0,0.00019999,2]
[391706353,1760737832217,-774.63644867,0.00019999,2]
[391706354,1760737832228,-75.36355133,0.00019999,2]
[391706355,1760737832237,-163.51521852,0.0002,2]
[391706356,1760737832246,-173.05570666,0.0002,2]
[391706357,1760737832255,-164.70484905,0.0002,2]
[391706358,1760737832275,-204.22491195,0.0002,2]
[391706359,1760737832284,-174.95194413,0.0002,2]
[391706360,1760737832293,-198.09186119,0.0002,2]
[391706362,1760737832303,-595.47482744,0.0002,2]
[391706365,1760737832315,-9570.65766466,0.0002,2]
[391706367,1760737832325,-475.6557911,0.00020029,2]
[391706369,1760737832334,-522.46311979,0.00020184,2]
[391706370,1760737832343,-163.51521852,0.000202,2]
[391706371,1760737832353,-173.05570666,0.000202,2]
[391706373,1760737832362,-10166.1324921,0.000202,2]
[391706374,1760737832371,-1293.9138399,0.00020284,2]
[391706375,1760737832381,-500.0,0.00020374,2]
[391706376,1760737832391,-500.0,0.00020374,2]
[391706377,1760737832400,-163.51521852,0.000204,2]
[391706379,1760737832409,-173.05570666,0.000204,2]
[391706380,1760737832418,-10166.1324921,0.000204,2]
[391706382,1760737832427,-157.97296068,0.00020402,2]
[391706384,1760737832436,-245.53365755,0.00020459,2]
[391706386,1760737832446,-200.0,0.00020569,2]
[391706388,1760737832455,-500.0,0.00020569,2]
[391706390,1760737832464,-500.0,0.00020569,2]
[391706392,1760737832474,-500.0,0.00020569,2]
[391706394,1760737832483,-500.0,0.00020569,2]
[391706396,1760737832492,-500.0,0.00020569,2]
[391706398,1760737832501,-500.0,0.00020569,2]
[391706400,1760737832511,-173.05570666,0.000206,2]
[391706402,1760737832520,-10166.1324921,0.000206,2]
[391706404,1760737832533,-572.60631043,0.00020626,2]
[391706406,1760737832543,-883.0,0.00020667,2]
[391706408,1760737832552,-5718.08798271,0.000208,2]
[391706586,1760737837875,-2665.668642,0.000208,2]
[391706587,1760737838044,-1782.37586739,0.000208,2]
[391706588,1760737838053,-300.0,0.00020849,2]
[391706589,1760737838063,-621.15171579,0.00020879,2]
[391706590,1760737838073,-1000.0,0.00020922,2]
[391706591,1760737838083,-1445.0,0.00020999,2]
[391706592,1760737838092,-124.33763948,0.000211,2]
[391706599,1760737840155,-312.43034011,0.000211,2]
[391706600,1760737840166,-278.30299988,0.000211,2]
[391706601,1760737840218,-9451.06151263,0.000211,2]
[391706602,1760737840228,-500.0,0.00021117,2]
[391706603,1760737840238,-1000.0,0.00021117,2]
[391706604,1760737840247,-501.72250272,0.00021229,2]
[391706605,1760737840257,-500.0,0.00021229,2]
[391706606,1760737840267,-265.0,0.00021235,2]
[391706607,1760737840277,-10166.1324921,0.000213,2]
[391706608,1760737840287,-500.0,0.00021304,2]
[391706609,1760737840296,-333.0,0.00021419,2]
[391706610,1760737840306,-1500.0,0.0002147,2]
[391706611,1760737840315,-10166.1324921,0.000215,2]
[391706612,1760737840325,-296.25638332,0.00021559,2]
[391706613,1760737840334,-423.0,0.00021616,2]
[391706614,1760737840344,-500.0,0.00021665,2]
[391706615,1760737840353,-10166.1324921,0.000217,2]
[391706616,1760737840362,-1000.0,0.00021852,2]
[391706617,1760737840371,-10166.1324921,0.000219,2]
[391706618,1760737840381,-816.7978844,0.00021919,2]
[391706620,1760737840390,-445.0,0.00022059,2]
[391706621,1760737840399,-10166.1324921,0.000221,2]
[391706622,1760737840409,-1500.0,0.000224,2]
[391706623,1760737840418,-347.2345331,0.00022658,2]
[391706624,1760737840427,-2000.0,0.00022948,2]
[391706625,1760737840436,-200.0,0.00023067,2]
[391706626,1760737840445,-150.0,0.00023346,2]
[391706627,1760737840454,-166.66,0.00023403,30]
[391706628,1760737840464,-2000.0,0.00023496,2]
[391706629,1760737840473,-398.43237061,0.00023758,2]
[391706630,1760737840482,-183.88,0.00023836,2]
[391706631,1760737840491,-166.66,0.00023895,30]
[391706632,1760737840500,-166.66,0.00024388,30]
[391706633,1760737840510,-816.79788433,0.0002452,2]
[391706634,1760737840519,-300.0,0.00024544,2]
[391706635,1760737840529,-449.82305785,0.00024857,2]
[391706636,1760737840541,-166.66,0.00024881,30]
[391706637,1760737840550,-166.66,0.00025373,30]
[391706638,1760737840560,-1000.0,0.00025378,2]
[391706639,1760737840569,-153.0,0.00025565,2]
[391706640,1760737840578,-153.0,0.00025565,2]
[391706641,1760737840588,-153.0,0.00025565,2]
[391706642,1760737840597,-153.0,0.00025565,2]
[391706643,1760737840607,-153.0,0.00025565,2]
[391706644,1760737840616,-153.0,0.00025565,2]
[391706645,1760737840625,-153.0,0.00025565,2]
[391706646,1760737840634,-1462.31,0.00025567,2]
[391706647,1760737840644,-1462.31,0.00025841,2]
[391706648,1760737840653,-166.66,0.00025866,30]
[391706649,1760737840663,-300.0,0.00025913,2]
[391706650,1760737840672,-1155.34,0.00025928,2]
[391706651,1760737840681,-501.38568326,0.00025956,4]
[391706652,1760737840690,-1462.31,0.00026115,2]
[391706653,1760737840699,-500.0,0.0002619,5]
[391706654,1760737840708,-7164.134,0.00026279,12]
[391706655,1760737840717,-468.822,0.00026279,12]